bitfinex/quotes_ETHUSD_20230111
["timestamp","ask_amount","ask_price","bid_price","bid_amount"]
[1673463702708,29.00588,1337.5,1337.2,7.54592]
[1673463702869,1.9009,1337.4,1337.2,0.068]
[1673463703075,14.0990558,1337.4,1337.1,0.08148265]
[1673463703284,7.47776,1337.3,1337.1,0.08148265]
[1673463703493,7.53976,1337.3,1337.1,0.08148265]
[1673463703734,9.979749,1337.3,1337.1,0.08148265]
[1673463704384,12.979749,1337.3,1337.1,0.08148265]
[1673463704741,9.979749,1337.3,1337.1,0.08148265]
[1673463705543,1.327,1337.2,1337.1,0.08148265]
[1673463705760,25.65493,1337.2,1337.1,0.08148265]
[1673463706081,29.2807969,1337.2,1337.1,0.08148265]
[1673463706303,50.8908969,1337.2,1337.1,0.08148265]
[1673463709474,49.5638969,1337.2,1337.1,0.08148265]
[1673463710900,48.2318969,1337.2,1337.1,0.08148265]
[1673463711332,40.7535869,1337.2,1337.1,0.08148265]
[1673463711958,40.7535869,1337.2,1337.1,0.07888665]
[1673463714570,48.2318969,1337.2,1337.1,0.07888665]
[1673463714821,40.7535869,1337.2,1337.1,0.07888665]
[1673463715081,48.2318969,1337.2,1337.1,0.07888665]
[1673463715208,40.7535869,1337.2,1337.1,0.07888665]
[1673463719747,47.21224754,1337.2,1337.1,0.07888665]
[1673463720025,59.41100334,1337.2,1337.1,0.07888665]
[1673463720707,54.69055754,1337.2,1337.1,0.07888665]
[1673463721341,47.21224754,1337.2,1337.1,0.07888665]
[1673463721526,39.73393754,1337.2,1337.1,0.07888665]
[1673463721743,32.25562754,1337.2,1337.1,0.07888665]
[1673463722057,39.73393754,1337.2,1337.1,0.07888665]
[1673463722267,54.69055754,1337.2,1337.1,0.07888665]
[1673463723336,39.73393754,1337.2,1337.1,0.07888665]
[1673463723811,47.21224754,1337.2,1337.1,0.07888665]
[1673463724388,45.88124754,1337.2,1337.1,0.07888665]
[1673463724803,38.40293754,1337.2,1337.1,0.07888665]
[1673463726697,45.88124754,1337.2,1337.1,0.07888665]
[1673463727069,53.35955754,1337.2,1337.1,0.07888665]
[1673463730009,61.94524893,1337.2,1337.1,0.07888665]
[1673463730382,2.79703259,1337.0,1336.9,0.08722548]
[1673463730692,27.15502585,1337.0,1336.9,0.08722548]
[1673463730902,27.21702585,1337.0,1336.9,0.08722548]
[1673463734188,25.87702585,1337.0,1336.9,0.08722548]
[1673463736774,3.43873585,1337.0,1336.9,0.08722548]
[1673463736916,0.01603259,1337.0,1336.9,0.08722548]
[1673463737127,0.01603259,1337.0,1336.9,15.04720548]
[1673463737373,0.01603259,1337.0,1336.9,15.11520548]
[1673463737585,0.01603259,1337.0,1336.9,0.15522548]
[1673463737817,0.01603259,1337.0,1336.9,7.56721548]
[1673463738149,0.01603259,1337.0,1336.9,0.15522548]
[1673463738305,0.01603259,1337.0,1336.9,0.08722548]
[1673463738728,7.49546259,1337.0,1336.9,0.08722548]
[1673463738953,7.55746259,1337.0,1336.9,0.08722548]
[1673463739368,0.07803259,1337.0,1336.9,0.08722548]
[1673463739564,11.12341985,1337.0,1336.9,0.08722548]
[1673463739815,11.18541985,1337.0,1336.9,0.08722548]
[1673463741361,18.66484985,1337.0,1336.9,0.08722548]
[1673463743614,11.18541985,1337.0,1336.9,0.08722548]
[1673463744186,1.45403259,1337.0,1336.9,0.08722548]
[1673463744452,8.87146259,1337.0,1336.9,0.08722548]
[1673463744618,8.93346259,1337.0,1336.9,0.08722548]
[1673463744828,1.45403259,1337.0,1336.9,0.08722548]
[1673463745039,1.39203259,1337.0,1336.9,0.08722548]
[1673463745892,0.01603259,1337.0,1336.9,0.08722548]
[1673463746107,0.01603259,1337.0,1336.9,7.56721548]
[1673463746286,0.01603259,1337.0,1336.9,23.84198596]
[1673463747389,0.01603259,1337.0,1336.9,8.88200596]
[1673463747775,0.01603259,1337.0,1336.9,16.36199596]
[1673463748320,0.01603259,1337.0,1336.9,23.84198596]
[1673463749028,0.01603259,1337.0,1336.9,16.36199596]
[1673463749235,0.01603259,1337.0,1336.9,23.84198596]
[1673463749448,0.01603259,1337.0,1336.9,16.36199596]
[1673463749701,0.01603259,1337.0,1336.9,23.84198596]
[1673463750318,0.01603259,1337.0,1336.9,16.36199596]
[1673463750915,10.27646259,1337.0,1336.9,0.15522548]
[1673463751123,12.22556212,1337.0,1336.9,0.08722548]
[1673463751333,19.70499212,1337.0,1336.9,0.08722548]
[1673463751988,12.22556212,1337.0,1336.9,0.08722548]
[1673463752384,1.45403259,1337.0,1336.9,0.08722548]
[1673463752594,1.39203259,1337.0,1336.9,0.08722548]
[1673463752852,8.87146259,1337.0,1336.9,0.08722548]
[1673463753071,8.93346259,1337.0,1336.9,0.08722548]
[1673463753389,1.45403259,1337.0,1336.9,0.08722548]
[1673463753543,1.39203259,1337.0,1336.9,0.08722548]
[1673463753748,8.87146259,1337.0,1336.9,0.08722548]
[1673463754012,1.45403259,1337.0,1336.9,0.08722548]
[1673463754171,1.39203259,1337.0,1336.9,0.08722548]
[1673463754589,8.87146259,1337.0,1336.9,0.08722548]
[1673463754844,11.85651953,1337.0,1336.9,0.08722548]
[1673463756574,4.37708953,1337.0,1336.9,0.08722548]
[1673463756749,1.39403259,1337.0,1336.9,0.08722548]
[1673463756935,0.01603259,1337.0,1336.9,0.08722548]
[1673463757143,34.95078081,1337.0,1336.9,0.08395163]
[1673463757362,42.27476774,1337.0,1336.9,0.08395163]
[1673463757596,40.29432661,1337.0,1336.9,0.08395163]
[1673463757906,34.13861652,1337.0,1336.9,0.08395163]
[1673463758065,46.54501652,1337.0,1336.9,0.08395163]
[1673463758428,54.02444652,1337.0,1336.9,0.08395163]
[1673463758600,58.74489232,1337.0,1336.9,0.08395163]
[1673463759243,60.98203834,1337.0,1336.9,0.08395163]
[1673463759457,58.74489232,1337.0,1336.9,0.08395163]
[1673463760020,54.02444652,1337.0,1336.9,0.08395163]
[1673463761213,56.26159254,1337.0,1336.9,0.08395163]
[1673463761856,65.90009254,1337.0,1336.9,0.08395163]
[1673463763525,70.62053834,1337.0,1336.9,0.08395163]
[1673463763877,65.90009254,1337.0,1336.9,0.08395163]
[1673463764202,70.62053834,1337.0,1336.9,0.08395163]
[1673463765029,65.90009254,1337.0,1336.9,0.08395163]
[1673463766295,64.2221096,1337.0,1336.9,0.08395163]
[1673463766607,68.9425554,1337.0,1336.9,0.08395163]
[1673463766785,75.32056831,1337.0,1336.9,0.00095163]
[1673463766990,2.8136702,1336.8,1336.7,0.08851975]
[1673463767286,32.42633039,1336.8,1336.7,0.08851975]
[1673463767406,36.26020347,1336.8,1336.7,0.08851975]
[1673463767890,58.01660347,1336.8,1336.7,0.08851975]
[1673463768283,56.34141395,1336.8,1336.7,0.08851975]
[1673463768505,54.36097282,1336.8,1336.7,0.08851975]
[1673463769464,56.55946226,1336.8,1336.7,0.08851975]
[1673463770560,54.36097282,1336.8,1336.7,0.08851975]
[1673463771209,61.27831358,1336.8,1336.7,0.08851975]
[1673463771524,71.75682591,1336.8,1336.7,0.00051975]
[1673463772165,74.75682591,1336.8,1336.5,0.08851975]
[1673463772399,5.44487434,1336.6,1336.5,0.08851975]
[1673463772726,41.58380693,1336.6,1336.5,0.08851975]
[1673463772941,39.79237498,1336.6,1336.5,0.08851975]
[1673463773098,63.4766578,1336.6,1336.5,0.08851975]
[1673463773518,68.1971036,1336.6,1336.5,0.08851975]
[1673463773848,75.73573911,1336.6,1336.5,0.08851975]
[1673463774064,73.87935629,1336.6,1336.5,0.08851975]
[1673463774399,72.36530154,1336.6,1336.5,0.08851975]
[1673463774572,69.39403615,1336.6,1336.5,0.08851975]
[1673463774994,74.11448195,1336.6,1336.5,0.08851975]
[1673463775529,75.22935629,1336.6,1336.5,0.08851975]
[1673463775932,77.08582411,1336.6,1336.5,0.08851975]
[1673463776142,10.347,1336.5,1336.4,0.08851975]
[1673463776480,52.67030979,1336.5,1336.4,0.08851975]
[1673463777225,52.66693159,1336.5,1336.4,0.08851975]
[1673463779094,47.94648579,1336.5,1336.4,0.08851975]
[1673463779550,52.66693159,1336.5,1336.4,0.08851975]
[1673463783294,28.16292848,1336.5,1336.4,0.08851975]
[1673463784489,1.91860784,1336.5,1336.4,0.08851975]
[1673463784662,1.85660784,1336.5,1336.4,22.53685975]
[1673463784874,1.85660784,1336.5,1336.4,23.94485975]
[1673463785085,1.85660784,1336.5,1336.4,23.93985975]
[1673463785502,1.85660784,1336.5,1336.4,15.12207975]
[1673463785977,1.85660784,1336.5,1336.4,0.15651975]
[1673463786187,1.85660784,1336.5,1336.4,0.08851975]
[1673463786549,1.85660784,1336.5,1336.4,9.09498852]
[1673463786799,1.85660784,1336.5,1336.4,16.64576852]
[1673463787493,1.85660784,1336.5,1336.4,9.16298852]
[1673463788022,1.85660784,1336.5,1336.4,17.97376852]
[1673463788696,1.85660784,1336.5,1336.4,10.49098852]
[1673463788856,1.85660784,1336.5,1336.4,3.00820852]
[1673463789068,1.85660784,1336.5,1336.4,2.94020852]
[1673463789902,1.85660784,1336.5,1336.4,10.42298852]
[1673463790112,1.85660784,1336.5,1336.4,10.49098852]
[1673463790863,1.85660784,1336.5,1336.4,3.00820852]
[1673463791081,1.85660784,1336.5,1336.4,2.94020852]
[1673463791306,1.85660784,1336.5,1336.4,1.61220852]
[1673463791650,1.85660784,1336.5,1336.4,2.95320852]
[1673463791803,1.85660784,1336.5,1336.4,1.42951975]
[1673463792303,1.85660784,1336.5,1336.4,0.08851975]
[1673463794473,1.85660784,1336.5,1336.4,7.57129975]
[1673463794687,1.85660784,1336.5,1336.4,22.60485975]
[1673463795068,1.85660784,1336.5,1336.4,23.94585975]
[1673463795278,1.85660784,1336.5,1336.4,29.91963738]
[1673463795473,1.85660784,1336.5,1336.4,32.91963738]
[1673463795683,1.85660784,1336.5,1336.4,37.84612271]
[1673463795894,1.85660784,1336.5,1336.4,33.35567691]
[1673463796163,1.85660784,1336.5,1336.4,34.47311463]
[1673463796734,1.85660784,1336.5,1336.4,32.79801689]
[1673463797837,1.85660784,1336.5,1336.4,34.47311463]
[1673463798466,1.85660784,1336.5,1336.4,32.78521813]
[1673463798793,1.85660784,1336.5,1336.4,33.35567691]
[1673463799009,1.85660784,1336.5,1336.4,35.59273942]
[1673463799177,1.85660784,1336.5,1336.4,33.35567691]
[1673463799396,1.85660784,1336.5,1336.4,36.92373942]
[1673463800022,1.85660784,1336.5,1336.4,34.68367691]
[1673463800322,1.85660784,1336.5,1336.4,35.80429665]
[1673463800958,1.85287904,1336.5,1336.4,34.12919891]
[1673463801291,1.85287904,1336.5,1336.4,35.80429665]
[1673463801633,1.85287904,1336.5,1336.4,32.78221813]
[1673463801791,9.04e-06,1336.5,1336.4,32.57664168]
[1673463802164,9.04e-06,1336.5,1336.4,40.1655829]
[1673463802475,9.04e-06,1336.5,1336.4,42.41200338]
[1673463802637,9.04e-06,1336.5,1336.4,40.73604168]
[1673463802841,9.04e-06,1336.5,1336.4,45.45142662]
[1673463803053,9.04e-06,1336.5,1336.4,48.22550829]
[1673463803502,9.04e-06,1336.5,1336.4,53.02344221]
[1673463804257,9.04e-06,1336.5,1336.4,57.03644221]
[1673463804417,9.04e-06,1336.5,1336.4,59.27023051]
[1673463804631,9.04e-06,1336.5,1336.4,57.03644221]
[1673463804850,9.04e-06,1336.5,1336.4,71.03644221]
[1673463805065,9.04e-06,1336.5,1336.4,71.04544221]
[1673463806016,51.9331,1337.1,1336.6,3.0]
[1673463806347,40.539,1337.1,1336.7,15.69530172]
[1673463806559,40.539,1337.1,1336.9,31.26096]
[1673463806560,0.062,1337.1,1336.9,31.26096]
[1673463806766,9.90214116,1337.2,1336.9,31.32896]
[1673463807013,9.96414116,1337.2,1336.9,31.32896]
[1673463809075,9.96414116,1337.2,1336.9,23.84897]
[1673463809522,17.44246116,1337.2,1336.9,1.409]
[1673463809714,17.44246116,1337.2,1336.9,23.78083]
[1673463809715,9.96414116,1337.2,1336.9,23.78083]
[1673463809927,9.96414116,1337.2,1336.9,23.84883]
[1673463811217,9.96414116,1337.2,1336.9,22.50783]
[1673463811655,3.0,1337.1,1336.9,7.54796]
[1673463811992,10.47903,1337.1,1336.9,0.068]
[1673463812163,10.54103,1337.1,1336.8,7.87896]
[1673463812380,10.54103,1337.1,1336.8,15.35921]
[1673463812765,10.54103,1337.1,1336.8,7.87895]
[1673463813106,3.062,1337.1,1336.8,22.84005]
[1673463813309,3.0,1337.1,1336.8,7.87895]
[1673463813527,3.0,1337.1,1336.8,15.3595]
[1673463814392,3.0,1337.1,1336.8,22.84005]
[1673463814656,3.0,1337.1,1336.8,15.3595]
[1673463815507,3.0,1337.1,1336.8,7.54825]
[1673463815718,14.49239684,1337.1,1336.8,0.068]
[1673463815927,8.04076,1337.0,1336.7,7.54907]
[1673463816143,15.58219,1337.0,1336.7,7.54907]
[1673463816383,11.24448868,1337.0,1336.7,7.54907]
[1673463816590,3.0,1336.9,1336.7,7.54907]
[1673463816802,10.48006,1336.9,1336.7,0.068]
[1673463816980,10.54206,1336.9,1336.6,15.03066]
[1673463817200,3.062,1336.9,1336.7,7.48104]
[1673463817544,17.95998,1336.9,1336.7,0.068]
[1673463817753,10.54199,1336.9,1336.6,7.48161]
[1673463817979,3.062,1336.9,1336.6,15.03097]
[1673463818122,3.062,1336.9,1336.6,22.51258]
[1673463818123,3.0,1336.9,1336.6,22.51258]
[1673463818333,30.23094868,1337.0,1336.6,22.51258]
[1673463818543,1.12448664,1336.9,1336.6,22.51258]
[1673463818794,15.27165868,1337.0,1336.6,22.51258]
[1673463819002,15.26765868,1337.0,1336.6,22.51258]
[1673463819458,22.74709868,1337.0,1336.6,22.51258]
[1673463819807,3.0,1336.9,1336.6,22.51258]
[1673463820640,22.75109868,1337.0,1336.6,22.51258]
[1673463820857,30.22682868,1337.0,1336.6,22.51258]
[1673463821917,37.70655868,1337.0,1336.6,22.51258]
[1673463822143,3.0,1336.9,1336.6,22.51258]
[1673463823169,22.03113587,1336.9,1336.6,7.54936]
[1673463823426,14.61309587,1336.9,1336.6,7.54936]
[1673463823644,14.61309587,1336.9,1336.6,15.03102]
[1673463824499,22.09309587,1336.9,1336.6,0.068]
[1673463824677,29.57314587,1336.9,1336.6,7.48164]
[1673463824859,22.09309587,1336.9,1336.6,7.54964]
[1673463825486,14.61304587,1336.9,1336.6,15.0313]
[1673463825709,14.61304587,1336.9,1336.6,7.54964]
[1673463825905,22.09309587,1336.9,1336.6,7.54964]
[1673463826322,7.13033857,1336.9,1336.6,15.0313]
[1673463826578,7.13033857,1336.9,1336.6,7.54964]
[1673463826786,22.09059857,1336.9,1336.6,7.54964]
[1673463827221,22.09059857,1336.9,1336.6,7.50164]
[1673463827794,22.09059857,1336.9,1336.6,0.02]
[1673463828053,2.20905986,1336.8,1336.5,14.98569]
[1673463828214,29.57494857,1336.9,1336.6,7.48161]
[1673463828428,29.57094857,1336.9,1336.6,7.50161]
[1673463829105,14.61046857,1336.9,1336.6,14.98327]
[1673463829640,22.09059857,1336.9,1336.6,0.02]
[1673463829850,2.20905986,1336.8,1336.5,22.46766]
[1673463830007,22.09459857,1336.9,1336.5,22.46766]
[1673463830215,29.57072857,1336.9,1336.5,7.50384]
[1673463830427,29.57072857,1336.9,1336.5,14.98606]
[1673463831050,29.57272857,1336.9,1336.5,14.98306]
[1673463831255,29.57072857,1336.9,1336.5,14.98606]
[1673463831631,2.95707286,1336.8,1336.5,14.98606]
[1673463831843,4.341,1336.7,1336.5,0.022]
[1673463832151,4.341,1336.7,1336.5,0.002]
[1673463832152,19.30377,1336.7,1336.5,0.002]
[1673463832322,1.930377,1336.6,1336.5,0.002]
[1673463834625,9.412037,1336.6,1336.5,0.002]
[1673463834834,9.474037,1336.6,1336.5,0.002]
[1673463836996,24.437357,1336.6,1336.5,0.002]
[1673463837142,16.955697,1336.6,1336.5,0.002]
[1673463837347,1.992377,1336.6,1336.5,0.002]
[1673463837596,1.930377,1336.6,1336.5,0.002]
[1673463839190,11.6154,1336.7,1336.5,14.96644]
[1673463839503,11.6114,1336.7,1336.5,14.98644]
[1673463840136,3.0,1336.6,1336.5,0.022]
[1673463840351,3.0,1336.6,1336.5,0.002]
[1673463840554,11.6154,1336.7,1336.5,7.48422]
[1673463840740,15.58739635,1336.7,1336.5,7.50422]
[1673463840945,11.6114,1336.7,1336.5,7.50422]
[1673463841365,11.6114,1336.7,1336.5,22.46866]
[1673463841616,11.6114,1336.7,1336.5,23.58547108]
[1673463842352,0.062,1336.7,1336.6,1.11681108]
[1673463842542,0.062,1336.8,1336.6,4.11681108]
[1673463842733,22.1967,1337.0,1336.6,23.56179108]
[1673463842944,22.1967,1337.0,1336.6,23.58179108]
[1673463843416,22.1967,1337.0,1336.6,8.61847108]
[1673463843610,3.0,1336.9,1336.6,0.02]
[1673463843801,6.267613,1336.9,1336.5,9.07421108]
[1673463844018,22.630863,1336.9,1336.5,7.9574]
[1673463844230,34.82508661,1336.9,1336.5,7.9574]
[1673463844408,39.73762159,1336.9,1336.5,0.022]
[1673463844619,39.73762159,1336.9,1336.5,7.48421]
[1673463844884,3.97376216,1336.8,1336.5,7.50421]
[1673463845096,11.45444216,1336.8,1336.5,7.50421]
[1673463845254,3.0,1336.7,1336.5,7.50421]
[1673463847263,35.37854216,1336.8,1336.5,7.50421]
[1673463847476,27.89386216,1336.8,1336.5,7.50421]
[1673463847688,2.78938622,1336.7,1336.5,22.46865]
[1673463848572,2.78938622,1336.7,1336.5,23.58546108]
[1673463849807,5.56253212,1336.7,1336.5,23.58546108]
[1673463850019,5.62453212,1336.7,1336.5,23.58546108]
[1673463851615,5.62453212,1336.7,1336.5,1.13881108]
[1673463851804,5.62453212,1336.7,1336.5,0.002]
[1673463852020,3.0,1336.6,1336.5,0.002]
[1673463852971,5.62853212,1336.7,1336.5,16.08325108]
[1673463853211,5.62453212,1336.7,1336.5,16.10325108]
[1673463854101,3.062,1336.7,1336.5,16.10325108]
[1673463854306,3.0,1336.7,1336.5,23.58547108]
[1673463854936,28.4515365,1336.8,1336.5,16.10325108]
[1673463855152,35.9281965,1336.8,1336.5,16.10325108]
[1673463855398,35.9281965,1336.8,1336.5,8.62103108]
[1673463855569,4.92181965,1336.7,1336.5,0.022]
[1673463855779,1.341,1336.6,1336.5,0.002]
[1673463855988,23.78598,1336.6,1336.5,0.002]
[1673463856237,26.75709621,1336.6,1336.5,0.002]
[1673463856413,34.54203209,1336.6,1336.5,0.002]
[1673463856776,41.39785909,1336.6,1336.5,0.002]
[1673463857088,53.96476929,1336.6,1336.5,0.002]
[1673463857473,49.24938435,1336.6,1336.5,0.002]
[1673463858215,56.98236263,1336.6,1336.5,0.002]
[1673463858422,60.56101944,1336.6,1336.5,0.002]
[1673463858820,66.9487159,1336.6,1336.5,0.002]
[1673463859034,60.56101944,1336.6,1336.5,0.002]
[1673463860432,62.41729438,1336.6,1336.5,0.002]
[1673463861246,66.45280469,1336.6,1336.5,0.002]
[1673463862297,76.98718963,1336.6,1336.1,3.09649326]
[1673463862521,1.341,1336.3,1336.0,1.24170514]
[1673463862738,1.341,1336.3,1336.0,1.30770514]
[1673463862739,1.341,1336.2,1336.0,1.30770514]
[1673463863239,16.3088,1336.2,1336.0,1.24170514]
[1673463863456,8.8909,1336.2,1336.0,1.24170514]
[1673463864814,16.3748,1336.2,1336.0,1.24170514]
[1673463865020,20.970563,1336.2,1336.0,1.24170514]
[1673463865283,13.486663,1336.2,1336.0,1.24170514]
[1673463865473,31.454463,1336.2,1336.0,0.12224253]
[1673463865661,23.970563,1336.2,1336.0,0.12224253]
[1673463866758,20.970563,1336.2,1336.0,0.12224253]
[1673463866932,2.0970563,1336.1,1336.0,0.12224253]
[1673463867126,6.002763,1336.2,1336.0,0.12224253]
[1673463867340,6.002763,1336.2,1336.0,15.09228253]
[1673463867545,0.066,1336.2,1336.0,23.76159784]
[1673463867756,21.6038,1336.3,1336.0,25.43996508]
[1673463868013,21.6038,1336.3,1336.1,1.11812466]
[1673463868222,21.6038,1336.3,1336.2,7.4839]
[1673463868388,12.4011,1336.3,1336.2,7.5499]
[1673463868809,12.4011,1336.3,1336.2,15.0338]
[1673463870800,12.4011,1336.3,1336.2,7.5499]
[1673463871058,12.4011,1336.3,1336.2,0.066]
[1673463871288,12.4011,1336.3,1336.1,16.15259787]
[1673463871640,12.4011,1336.3,1336.1,23.63705787]
[1673463872488,0.066,1336.3,1336.1,23.63705787]
[1673463872693,57.2779,1336.5,1336.1,23.63705787]
[1673463873153,64.76027,1336.5,1336.1,23.63705787]
[1673463873449,72.24264,1336.5,1336.1,22.51879]
[1673463874717,64.76027,1336.5,1336.1,22.51879]
[1673463876275,72.24249,1336.5,1336.1,22.51879]
[1673463876538,64.76012,1336.5,1336.1,22.51879]
[1673463877066,72.24234,1336.5,1336.1,23.63705787]
[1673463877647,72.24234,1336.5,1336.1,22.51879]
[1673463877870,64.76012,1336.5,1336.1,23.63705787]
[1673463878081,70.03355446,1336.5,1336.1,23.63705787]
[1673463878309,70.03355446,1336.5,1336.1,23.64071574]
[1673463879038,70.03355446,1336.5,1336.1,22.52244787]
[1673463879249,3.0,1336.4,1336.1,22.52244787]
[1673463880319,3.0,1336.4,1336.1,0.06965787]
[1673463880528,0.3,1336.3,1336.0,0.18824253]
[1673463880839,15.82841,1336.3,1336.0,1.2405104]
[1673463881064,15.89441,1336.3,1336.0,1.2405104]
[1673463881368,15.33301,1336.3,1336.0,0.12224253]
[1673463881741,3.0,1336.2,1336.0,0.12224253]
[1673463882523,7.84936,1336.3,1336.0,7.60719253]
[1673463882693,0.366,1336.3,1336.0,22.64323253]
[1673463882903,0.3,1336.3,1336.0,23.7615004]
[1673463884264,0.3,1336.3,1336.0,22.64323253]
[1673463884719,0.3,1336.3,1336.0,23.7615004]
[1673463886981,0.29611702,1336.3,1336.0,25.43986764]
[1673463888210,7.77947702,1336.3,1336.0,10.46982764]
[1673463888420,0.36211702,1336.3,1336.0,17.95484764]
[1673463888698,0.29611702,1336.3,1336.0,17.95484764]
[1673463889204,0.29611702,1336.3,1336.0,16.2764804]
[1673463889682,3.0,1336.2,1336.0,1.3065104]
[1673463889899,17.96829,1336.2,1336.0,0.12224253]
[1673463890105,3.066,1336.2,1336.0,0.12224253]
[1673463890314,19.97545702,1336.3,1336.0,16.2104904]
[1673463890569,1.9975457,1336.2,1336.0,1.3065104]
[1673463890781,4.9975457,1336.2,1336.0,0.12224253]
[1673463891368,4.9975457,1336.2,1336.0,1.2405104]
[1673463891699,4.9975457,1336.2,1336.0,0.12224253]
[1673463892105,12.4814857,1336.2,1336.0,0.12224253]
[1673463892363,12.5474857,1336.2,1336.0,1.2405104]
[1673463892574,5.0635457,1336.2,1336.0,1.2405104]
[1673463893198,3.28735457,1336.1,1336.0,1.2405104]
[1673463893570,3.28735457,1336.1,1336.0,8.7255304]
[1673463893571,0.50635457,1336.1,1336.0,8.7255304]
[1673463893776,0.066,1336.2,1336.0,25.43993764]
[1673463894042,22.61841702,1336.3,1336.0,25.43993764]
[1673463894258,22.3223,1336.3,1336.2,14.9678]
[1673463894465,12.196,1336.3,1336.2,23.63596787]
[1673463894831,12.196,1336.3,1336.2,22.5177]
[1673463895252,12.196,1336.3,1336.2,23.63596787]
[1673463897689,12.196,1336.3,1336.2,16.15206787]
[1673463897924,13.77173,1336.3,1336.2,16.15206787]
[1673463899508,13.77173,1336.3,1336.2,8.66816787]
[1673463900283,13.77173,1336.3,1336.2,0.066]
[1673463900434,13.77173,1336.3,1336.1,25.31491511]
[1673463900643,21.25507,1336.3,1336.1,1.18426787]
[1673463900871,5.125507,1336.2,1336.0,17.95458764]
[1673463901169,5.191507,1336.2,1336.0,2.98487764]
[1673463901382,5.191507,1336.2,1336.0,2.91887764]
[1673463902009,2.191507,1336.2,1336.0,2.91887764]
[1673463902266,2.125507,1336.2,1336.0,10.40368764]
[1673463902486,2.125507,1336.2,1336.1,1.11826787]
[1673463902699,2.125507,1336.2,1336.1,8.60272787]
[1673463902849,2.125507,1336.2,1336.1,8.66872787]
[1673463903299,2.125507,1336.2,1336.1,1.18426787]
[1673463903540,2.125507,1336.2,1336.1,1.11826787]
[1673463903896,5.125507,1336.2,1336.1,1.11826787]
[1673463904132,5.191507,1336.2,1336.1,1.11826787]
[1673463904545,2.191507,1336.2,1336.1,1.11826787]
[1673463904767,2.125507,1336.2,1336.1,1.11826787]
[1673463904971,5.125507,1336.2,1336.1,1.11826787]
[1673463905188,2.191507,1336.2,1336.1,1.11826787]
[1673463905532,2.125507,1336.2,1336.1,1.11826787]
[1673463906108,2.125507,1336.2,1336.0,25.43934764]
[1673463906319,2.125507,1336.2,1336.1,1.11826787]
[1673463906644,5.125507,1336.2,1336.1,1.11826787]
[1673463906847,2.191507,1336.2,1336.1,1.11826787]
[1673463907055,2.125507,1336.2,1336.1,1.11826787]
[1673463907369,2.125507,1336.2,1336.1,8.60272787]
[1673463907681,25.14013,1336.3,1336.1,16.15318787]
[1673463907842,10.1044,1336.3,1336.2,1.11826787]
[1673463908011,0.066,1336.3,1336.2,24.13006724]
[1673463908380,53.12677434,1336.5,1336.2,23.63848763]
[1673463908548,5.31267743,1336.4,1336.2,25.31685487]
[1673463908754,0.066,1336.4,1336.2,25.31685487]
[1673463909101,22.42677434,1336.5,1336.2,25.31685487]
[1673463909321,21.3119,1336.5,1336.2,25.31685487]
[1673463909487,22.42677434,1336.5,1336.2,25.31685487]
[1673463909916,21.3119,1336.5,1336.2,25.31685487]
[1673463910180,26.05110129,1336.5,1336.2,25.31685487]
[1673463911065,24.93272453,1336.5,1336.2,25.31685487]
[1673463911440,24.93272453,1336.5,1336.3,1.12078763]
[1673463911657,24.93272453,1336.5,1336.3,16.08681763]
[1673463911947,24.93272453,1336.5,1336.3,7.54887]
[1673463912317,3.0,1336.4,1336.3,7.54887]
[1673463917376,30.50444105,1336.5,1336.3,15.03221]
[1673463917599,26.04759887,1336.5,1336.3,22.51555]
[1673463919034,9.4666,1336.5,1336.3,23.63633763]
[1673463919247,0.066,1336.5,1336.3,25.31470487]
[1673463919490,23.60447434,1336.7,1336.4,1.12078763]
[1673463919720,26.455005,1336.7,1336.5,22.44666]
[1673463919926,26.455005,1336.7,1336.5,22.51266]
[1673463920097,26.76268459,1336.7,1336.5,22.51266]
[1673463920307,26.76268459,1336.7,1336.5,7.54822]
[1673463920538,29.54721525,1336.7,1336.5,7.54822]
[1673463921081,26.76268459,1336.7,1336.5,0.066]
[1673463921259,29.54721525,1336.7,1336.4,15.03093]
[1673463921457,37.02844525,1336.7,1336.4,7.54844]
[1673463921663,37.02844525,1336.7,1336.4,15.03122]
[1673463922408,29.54681158,1336.7,1336.4,22.514]
[1673463922819,29.54681301,1336.7,1336.4,22.514]
[1673463923296,26.76268459,1336.7,1336.4,22.514]
[1673463923984,37.02796839,1336.7,1336.4,15.03122]
[1673463924307,37.02796839,1336.7,1336.4,7.54844]
[1673463924308,6.70279684,1336.6,1336.4,7.54844]
[1673463924503,6.76879684,1336.6,1336.4,7.54844]
[1673463924713,3.76879684,1336.6,1336.4,15.03122]
[1673463924919,37.02797668,1336.7,1336.4,15.03122]
[1673463925549,3.0,1336.6,1336.4,15.03122]
[1673463928838,26.76268459,1336.7,1336.4,22.514]
[1673463929278,26.76268459,1336.7,1336.4,15.03122]
[1673463929509,34.24385459,1336.7,1336.4,7.54844]
[1673463929827,3.42438546,1336.6,1336.4,15.03122]
[1673463929981,41.72531459,1336.7,1336.4,7.54844]
[1673463930190,2.9711181,1336.6,1336.2,9.58218763]
[1673463930420,22.44701,1336.5,1336.2,8.3617]
[1673463930634,34.20811,1336.5,1336.2,1.18678763]
[1673463930889,26.72577,1336.5,1336.1,17.95796487]
[1673463931106,2.672577,1336.4,1336.1,2.86515487]
[1673463931428,2.672577,1336.4,1336.1,17.76795487]
[1673463931588,2.672577,1336.4,1336.1,17.83395487]
[1673463932232,2.672577,1336.4,1336.1,25.31841487]
[1673463932594,25.121527,1336.4,1336.1,1.18678763]
[1673463933622,0.32672577,1336.2,1336.0,16.27863016]
[1673463933811,0.32672577,1336.2,1336.0,8.79361016]
[1673463934054,7.81069577,1336.2,1336.0,0.18824253]
[1673463934237,7.81069577,1336.2,1336.0,0.12224253]
[1673463934238,0.39272577,1336.2,1336.0,0.12224253]
[1673463934453,0.32672577,1336.2,1336.0,0.12224253]
[1673463934637,0.32672577,1336.2,1336.0,7.60725253]
[1673463934847,7.81079577,1336.2,1336.0,0.18824253]
[1673463935075,7.81079577,1336.2,1336.0,0.12224253]
[1673463935076,3.56207958,1336.1,1336.0,0.12224253]
[1673463935322,6.56207958,1336.1,1336.0,0.12224253]
[1673463935482,3.62807958,1336.1,1336.0,0.12224253]
[1673463935680,3.56207958,1336.1,1336.0,0.12224253]
[1673463935890,19.53702195,1336.1,1336.0,4.253e-05]
[1673463936155,19.53702195,1336.1,1335.9,1.67923645]
[1673463936156,3.0,1336.0,1335.9,1.67923645]
[1673463936370,20.96113297,1336.0,1335.9,1.67923645]